bitfinex-derivatives/quotes_BTCF0:USTF0_20250803
["timestamp","ask_amount","ask_price","bid_price","bid_amount"]
[1754183992912,0.339177,113040.0,113030.0,0.69898372]
[1754183993110,0.339177,113040.0,113030.0,0.6199791]
[1754183993505,0.339177,113040.0,113030.0,0.6184091]
[1754183996617,0.339177,113040.0,113030.0,0.6199791]
[1754183996918,0.63001642,113040.0,113030.0,0.91081852]
[1754183997717,0.63001642,113040.0,113030.0,0.6199791]
[1754183997916,0.92085584,113040.0,113030.0,0.07195943]
[1754183998217,0.92085584,113040.0,113030.0,0.06294943]
[1754184000826,0.59778632,113040.0,113030.0,0.06294943]
[1754184001418,0.339177,113040.0,113030.0,0.06294943]
[1754184001621,0.59778632,113040.0,113030.0,0.3608]
[1754184001825,0.2239198,113030.0,113020.0,0.43321943]
[1754184002022,0.55386912,113030.0,113020.0,0.47997943]
[1754184002521,0.55386912,113030.0,113020.0,0.43321943]
[1754184002926,0.55386912,113030.0,113020.0,0.37027]
[1754184003120,0.55386912,113030.0,113020.0,0.41703]
[1754184003515,0.2952598,113030.0,113020.0,0.6171455]
[1754184003721,0.55386912,113030.0,113020.0,0.44015]
[1754184003929,0.55386912,113030.0,113020.0,0.50307714]
[1754184004222,0.55386912,113030.0,113020.0,0.48884714]
[1754184004426,0.55386912,113030.0,113020.0,0.42372714]
[1754184004834,0.56227753,113030.0,113020.0,0.42372714]
[1754184005222,0.56227753,113030.0,113020.0,0.47995714]
[1754184005422,0.55386912,113030.0,113020.0,0.68007204]
[1754184005727,0.2952598,113030.0,113020.0,0.68258204]
[1754184005920,0.1998298,113030.0,113020.0,0.87983422]
[1754184006326,0.1998298,113030.0,113020.0,0.88083422]
[1754184006522,0.3097102,113040.0,113030.0,0.1769805]
[1754184006837,0.3097102,113040.0,113030.0,0.94273184]
[1754184006838,0.2440716,113040.0,113030.0,0.94273184]
[1754184007230,0.1998053,113050.0,113040.0,0.2588248]
[1754184007524,0.1998053,113050.0,113040.0,0.94271614]
[1754184009930,0.2810553,113050.0,113040.0,0.68410682]
[1754184010124,0.2952353,113050.0,113040.0,0.68410682]
[1754184010329,0.2952353,113050.0,113040.0,0.68253682]
[1754184010530,0.2952353,113050.0,113040.0,0.68410682]
[1754184010732,0.2972353,113050.0,113040.0,0.68410682]
[1754184011928,0.2840553,113050.0,113040.0,0.68410682]
[1754184012635,0.2840553,113050.0,113040.0,0.6211948]
[1754184012827,0.2840553,113050.0,113040.0,0.68405149]
[1754184013027,0.2982353,113050.0,113040.0,0.68248149]
[1754184016534,0.55684462,113050.0,113040.0,0.50551669]
[1754184017034,0.55684462,113050.0,113040.0,0.68248129]
[1754184017939,0.55684462,113050.0,113040.0,0.6196246]
[1754184019238,0.2982353,113050.0,113040.0,0.6196246]
[1754184023342,0.2962353,113050.0,113040.0,0.6196246]
[1754184023845,0.2972353,113050.0,113040.0,0.6196246]
[1754184024444,0.2982353,113050.0,113040.0,0.6196246]
[1754184026143,0.2497453,113050.0,113040.0,0.87980392]
[1754184027544,0.02585,113050.0,113040.0,0.87980392]
[1754184027752,0.003,113050.0,113040.0,0.87980392]
[1754184028047,0.0009997,113050.0,113040.0,0.94266061]
[1754184028850,0.02285,113060.0,113050.0,0.2598092]
[1754184029148,0.02285,113060.0,113050.0,0.87921852]
[1754184029538,0.1997836,113060.0,113050.0,0.87921852]
[1754184030034,0.02285,113060.0,113050.0,0.87921852]
[1754184030346,0.2444717,113070.0,113060.0,0.2582234]
[1754184030542,0.02331,113070.0,113060.0,0.87920272]
[1754184031141,0.2211425,113080.0,113070.0,0.2117477]
[1754184031341,0.2469142,113080.0,113070.0,0.88764105]
[1754184031544,0.2784342,113080.0,113070.0,0.62903173]
[1754184032046,0.2784342,113080.0,113070.0,0.69899854]
[1754184032751,0.2804342,113080.0,113070.0,0.69899854]
[1754184033145,0.2489142,113080.0,113070.0,0.69742854]
[1754184033342,0.2804342,113080.0,113070.0,0.69899854]
[1754184033542,0.2950242,113080.0,113070.0,0.69899854]
[1754184033844,0.2950242,113080.0,113070.0,0.69054451]
[1754184034349,0.55363352,113080.0,113070.0,0.68897451]
[1754184034938,0.81224284,113080.0,113070.0,0.43076681]
[1754184035242,0.2930277,113070.0,113060.0,0.3608]
[1754184035446,0.55163702,113070.0,113060.0,0.3608]
[1754184035646,0.2930277,113070.0,113060.0,0.40271]
[1754184035840,0.55163702,113070.0,113060.0,0.40271]
[1754184036145,0.55163702,113070.0,113060.0,0.41695]
[1754184036647,0.55163702,113070.0,113060.0,0.66463655]
[1754184036846,0.55163702,113070.0,113060.0,0.48770295]
[1754184038852,0.55163702,113070.0,113060.0,0.68726655]
[1754184039453,0.55263702,113070.0,113060.0,0.68726655]
[1754184039953,0.55263702,113070.0,113060.0,0.68977655]
[1754184040546,0.2794377,113070.0,113060.0,0.68977655]
[1754184040752,0.2012277,113070.0,113060.0,0.94995587]
[1754184040953,0.2012277,113070.0,113060.0,0.58915587]
[1754184041145,0.02431,113070.0,113060.0,1.31075587]
[1754184041345,0.001,113070.0,113060.0,1.37361256]
[1754184041554,0.02431,113070.0,113060.0,1.37361256]
[1754184041755,0.001,113070.0,113060.0,1.37361256]
[1754184041955,0.02431,113070.0,113060.0,1.37361256]
[1754184042858,0.02331,113070.0,113060.0,1.37361256]
[1754184043164,0.02431,113070.0,113060.0,1.37361256]
[1754184044557,0.02331,113070.0,113060.0,1.37361256]
[1754184045158,0.2002277,113070.0,113060.0,1.37361256]
[1754184046163,0.02331,113070.0,113060.0,1.37361256]
[1754184047162,0.02331,113070.0,113060.0,1.11500324]
[1754184047163,0.2002281,113070.0,113060.0,1.11500324]
[1754184047367,0.2002281,113070.0,113060.0,1.37361256]
[1754184047568,0.2154081,113070.0,113060.0,1.37361256]
[1754184048666,0.2154081,113070.0,113060.0,1.11500324]
[1754184049268,0.2930281,113070.0,113060.0,1.11343324]
[1754184049962,0.55163742,113070.0,113060.0,1.11343374]
[1754184050168,0.55163742,113070.0,113060.0,0.87364295]
[1754184050562,0.55163742,113070.0,113060.0,0.87113295]
[1754184051368,0.55163742,113070.0,113060.0,1.04806645]
[1754184052458,0.2930281,113070.0,113060.0,1.04806645]
[1754184053068,0.2930281,113070.0,113060.0,1.04963645]
[1754184054473,0.2930281,113070.0,113060.0,1.11249314]
[1754184055172,0.2469181,113070.0,113060.0,1.11249314]
[1754184057368,0.2002281,113070.0,113060.0,1.11249314]
[1754184057579,0.2444488,113080.0,113070.0,0.2597774]
[1754184057873,0.2911488,113080.0,113070.0,0.6205774]
[1754184058070,0.3372488,113080.0,113070.0,0.6205774]
[1754184058672,0.3382488,113080.0,113070.0,0.6205774]
[1754184059273,0.3392488,113080.0,113070.0,0.6205774]
[1754184059667,0.3392488,113080.0,113070.0,0.68343409]
[1754184059974,0.3392488,113080.0,113070.0,0.68186409]
[1754184060178,0.59785812,113080.0,113070.0,0.68186409]
[1754184060373,0.2923676,113070.0,113060.0,0.80565214]
[1754184060678,0.55097692,113070.0,113060.0,1.17636214]
[1754184061770,0.2464276,113070.0,113060.0,1.17636214]
[1754184061971,0.2365176,113070.0,113060.0,1.17793214]
[1754184062171,0.3348773,113080.0,113070.0,0.2112476]
[1754184062373,0.3671973,113080.0,113070.0,0.6194776]
[1754184062878,0.3808173,113080.0,113070.0,0.6194776]
[1754184063270,0.3808173,113080.0,113070.0,0.6179076]
[1754184063468,0.63942662,113080.0,113070.0,0.6179076]
[1754184063977,0.3808173,113080.0,113070.0,0.6179076]
[1754184064780,0.3818173,113080.0,113070.0,0.6179076]
[1754184065172,0.3828173,113080.0,113070.0,0.6179076]
[1754184066182,0.68559246,113080.0,113070.0,0.3608]
[1754184066382,0.68559246,113080.0,113070.0,0.5377177]
[1754184066883,0.68559246,113080.0,113070.0,0.5934877]
[1754184067077,0.68559246,113080.0,113070.0,0.6153977]
[1754184067268,0.68559246,113080.0,113070.0,0.6179077]
[1754184068272,0.3828173,113080.0,113070.0,0.6179077]
[1754184068471,0.3828173,113080.0,113070.0,0.68076439]
[1754184069984,0.68559246,113080.0,113070.0,0.68076439]
[1754184070281,0.3828173,113080.0,113070.0,0.68076439]
[1754184072775,0.3828173,113080.0,113070.0,0.44099]
[1754184072975,0.68559246,113080.0,113070.0,0.44099]
[1754184073685,0.68559246,113080.0,113070.0,0.6179079]
[1754184074488,0.3828173,113080.0,113070.0,0.6179079]
[1754184076880,0.3368773,113080.0,113070.0,0.6179079]
[1754184077088,0.3368773,113080.0,113070.0,0.6194779]
[1754184077384,0.3691973,113080.0,113070.0,0.6194779]
[1754184077584,0.3828173,113080.0,113070.0,0.6194779]
[1754184078086,0.3828173,113080.0,113070.0,0.6179079]
[1754184078481,0.3691973,113080.0,113070.0,0.6179079]
[1754184078780,0.3828173,113080.0,113070.0,0.6179079]
[1754184083890,0.3828173,113080.0,113070.0,0.68076459]
[1754184084890,0.64119341,113080.0,113070.0,0.68076459]
[1754184085277,0.3828173,113080.0,113070.0,0.68076459]
[1754184085482,0.64119341,113080.0,113070.0,0.68233459]
[1754184086083,0.3828173,113080.0,113070.0,0.68233459]
[1754184086283,0.64119341,113080.0,113070.0,0.68233459]
[1754184086789,0.64119341,113080.0,113070.0,0.68076459]
[1754184090392,0.55102471,113080.0,113070.0,0.68076459]
[1754184090591,0.002,113080.0,113070.0,0.9407107]
[1754184090997,0.002,113080.0,113070.0,0.87785401]
[1754184091196,0.002,113080.0,113070.0,0.94071991]
[1754184092098,0.3036,113090.0,113080.0,0.2594818]
[1754184092298,0.33587,113090.0,113080.0,0.87865791]
[1754184092698,0.3036,113090.0,113080.0,0.87865791]
[1754184093094,0.3036,113090.0,113080.0,0.6202818]
[1754184094396,0.36707,113090.0,113080.0,0.87865791]
[1754184094702,0.38075,113090.0,113080.0,0.6202818]
[1754184097896,0.3365253,113090.0,113080.0,0.6202818]
[1754184098097,0.3228453,113090.0,113080.0,0.6202818]
[1754184099192,0.3365253,113090.0,113080.0,0.6202818]
[1754184099594,0.3365253,113090.0,113080.0,0.6187118]
[1754184102904,0.3365253,113090.0,113080.0,0.68156734]
[1754184103103,0.3365253,113090.0,113080.0,0.6187118]
[1754184103292,0.3365253,113090.0,113080.0,0.68156734]
[1754184104103,0.3365253,113090.0,113080.0,0.6187118]
[1754184105904,0.3365253,113090.0,113080.0,0.68156734]
[1754184106513,0.3365253,113090.0,113080.0,0.6187118]
[1754184106706,0.3365253,113090.0,113080.0,0.68156734]
[1754184106906,0.2593753,113090.0,113080.0,0.68313734]
[1754184107109,0.2905753,113090.0,113080.0,0.68313734]
[1754184107295,0.3228453,113090.0,113080.0,0.94151345]
[1754184108700,0.3365253,113090.0,113080.0,0.93994345]
[1754184108901,0.3365253,113090.0,113080.0,0.68156734]
[1754184112812,0.3365253,113090.0,113080.0,0.6187118]
[1754184116317,0.59490141,113090.0,113080.0,0.6187118]
[1754184116613,0.59490141,113090.0,113080.0,0.3608]
[1754184117213,0.59490141,113090.0,113070.0,0.6261583]
[1754184117214,0.2923122,113080.0,113070.0,0.6261583]
[1754184117513,0.2923122,113080.0,113070.0,0.6354183]
[1754184117514,0.55068831,113080.0,113070.0,0.6354183]
[1754184117715,0.55068831,113080.0,113070.0,0.7046583]
[1754184119209,0.55168831,113080.0,113070.0,0.7046583]
[1754184119814,0.55268831,113080.0,113070.0,0.7046583]
[1754184120014,0.2943122,113080.0,113070.0,0.7071683]
[1754184120214,0.55268831,113080.0,113070.0,0.7071683]
[1754184120416,0.07146,113080.0,113070.0,0.7071683]
[1754184120610,0.02514,113080.0,113070.0,0.96711441]
[1754184120806,0.2020425,113080.0,113070.0,0.96711441]
[1754184121011,0.2020425,113080.0,113070.0,0.7087383]
[1754184121311,0.2172525,113080.0,113070.0,0.7087383]
[1754184125013,0.04035,113080.0,113070.0,0.7087383]
[1754184125814,0.2172525,113080.0,113070.0,0.7087383]
[1754184126017,0.2172525,113080.0,113070.0,0.96711441]
[1754184128022,0.2504925,113080.0,113070.0,0.96711441]
[1754184128625,0.07259,113080.0,113070.0,0.96711441]
[1754184128827,0.03935,113080.0,113070.0,0.96711441]
[1754184130113,0.03835,113080.0,113070.0,0.96711441]
[1754184130317,0.02314,113080.0,113070.0,0.96711441]
[1754184130723,0.2466473,113090.0,113080.0,0.259112]
[1754184131025,0.2798873,113090.0,113080.0,0.6826974]
[1754184131614,0.2943173,113090.0,113080.0,0.6826974]
[1754184131819,0.2953173,113090.0,113080.0,0.6826974]
[1754184132118,0.2953173,113090.0,113080.0,0.6811274]
[1754184132523,0.2953173,113090.0,113080.0,0.6826974]
[1754184132926,0.2953173,113090.0,113080.0,0.6811274]
[1754184133123,0.2963173,113090.0,113080.0,0.6811274]
[1754184135429,0.55469341,113090.0,113080.0,0.6811274]
[1754184135831,0.55369341,113090.0,113080.0,0.6811274]
[1754184136135,0.55269341,113090.0,113080.0,0.6811274]
[1754184136730,0.55369341,113090.0,113080.0,0.6811274]
[1754184136927,0.55369341,113090.0,113080.0,0.6004874]
[1754184137426,0.55369341,113090.0,113080.0,0.2396874]
[1754184137828,0.55469341,113090.0,113080.0,0.2955574]
[1754184138030,0.55469341,113090.0,113080.0,0.2396874]
[1754184138528,0.55469341,113090.0,113080.0,0.176902]
[1754184138730,0.55469341,113090.0,113080.0,0.218012]
[1754184139127,0.294332,113080.0,113070.0,0.8138133]
[1754184139330,0.55270811,113080.0,113070.0,0.8138133]
[1754184140632,0.294332,113080.0,113070.0,0.7510279]
[1754184141128,0.294332,113080.0,113070.0,0.81378801]
[1754184142341,0.215742,113080.0,113070.0,0.81378801]
[1754184142635,0.215742,113080.0,113070.0,0.7525979]
[1754184142636,0.200532,113080.0,113070.0,0.7525979]
[1754184143028,0.215742,113080.0,113070.0,0.81534553]
[1754184143334,0.294332,113080.0,113070.0,0.81534553]
[1754184143727,0.294332,113080.0,113070.0,0.81377553]
[1754184146137,0.294332,113080.0,113070.0,0.7525979]
[1754184146532,0.200532,113080.0,113070.0,1.00940401]
[1754184146739,0.200532,113080.0,113070.0,1.01097401]
[1754184146939,0.02363,113080.0,113070.0,1.01097401]
[1754184147233,0.2211197,113090.0,113080.0,0.176902]
[1754184147542,0.2157376,113090.0,113080.0,0.68268312]
[1754184149139,0.2167376,113090.0,113080.0,0.68268312]
[1754184149641,0.2157376,113090.0,113080.0,0.68268312]
[1754184152434,0.2814776,113090.0,113080.0,0.68268312]
[1754184153138,0.2952376,113090.0,113080.0,0.68268312]
[1754184153745,0.2814776,113090.0,113080.0,0.68268312]
[1754184154140,0.2211013,113100.0,113090.0,0.1768862]
[1754184154337,0.3408613,113100.0,113090.0,0.6210662]
[1754184154743,0.3408613,113100.0,113090.0,0.68383732]
[1754184155344,0.3418613,113100.0,113090.0,0.68383732]
[1754184155549,0.3418613,113100.0,113090.0,0.6210662]
[1754184155846,0.3428613,113100.0,113090.0,0.68383732]
[1754184156546,0.3418613,113100.0,113090.0,0.68383732]
[1754184156745,0.3418613,113100.0,113090.0,0.6210662]
[1754184157246,0.3418613,113100.0,113090.0,0.68226732]
[1754184157642,0.60023741,113100.0,113090.0,0.68226732]
[1754184158742,0.60123741,113100.0,113090.0,0.68226732]
[1754184159142,0.55362741,113100.0,113090.0,0.68226732]
[1754184159347,0.60123741,113100.0,113090.0,0.68383732]
[1754184159547,0.3428613,113100.0,113090.0,0.68383732]
[1754184162151,0.2633613,113100.0,113090.0,0.68226732]
[1754184162353,0.2633613,113100.0,113090.0,0.68383732]
[1754184162850,0.2633613,113100.0,113090.0,0.6210662]
[1754184163654,0.2952513,113100.0,113090.0,0.6210662]
[1754184163853,0.3428613,113100.0,113090.0,0.6210662]
[1754184164249,0.3428613,113100.0,113090.0,0.6194962]
[1754184169755,0.3428613,113100.0,113090.0,0.62824621]
[1754184170155,0.3428613,113100.0,113090.0,0.6194962]
[1754184172156,0.3428613,113100.0,113090.0,0.62824196]
[1754184172355,0.3428613,113100.0,113090.0,0.62981196]
[1754184176257,0.3428613,113100.0,113090.0,0.6194962]
[1754184184866,0.2510206,113100.0,113090.0,0.87787231]
[1754184185158,0.2510206,113100.0,113090.0,0.94221343]
[1754184185159,0.002,113100.0,113090.0,0.94221343]
[1754184185357,0.002,113100.0,113090.0,0.87944231]
[1754184186359,0.002,113100.0,113090.0,0.95844693]
[1754184187068,0.2916536,113130.0,113120.0,0.2554393]
[1754184187267,0.3390136,113130.0,113120.0,0.87461541]
[1754184187461,0.3390136,113130.0,113120.0,0.6162393]
[1754184188465,0.3390136,113130.0,113120.0,0.68566634]
[1754184188670,0.3247636,113130.0,113120.0,0.68566634]
[1754184189670,0.2916536,113130.0,113120.0,0.68566634]
[1754184189869,0.2926536,113130.0,113120.0,0.68566634]
[1754184190170,0.2450136,113130.0,113120.0,0.94404245]
[1754184190365,0.001,113130.0,113120.0,0.94404245]
[1754184190570,0.02397,113130.0,113120.0,1.20241856]
[1754184190756,0.02397,113130.0,113120.0,1.00647001]
[1754184190958,0.02397,113130.0,113120.0,0.94404245]
[1754184191168,0.02497,113130.0,113120.0,1.00636732]
[1754184191564,0.002,113130.0,113120.0,1.00636732]
[1754184191776,0.1788236,113130.0,113120.0,1.00636732]
[1754184192067,0.2017936,113130.0,113120.0,1.00636732]
[1754184192263,0.2825436,113130.0,113120.0,0.74799121]
[1754184192571,0.2967936,113130.0,113120.0,0.74799121]
[1754184192766,0.2825436,113130.0,113120.0,0.74799121]
[1754184192969,0.2825436,113130.0,113120.0,0.68566634]
[1754184193572,0.2825436,113130.0,113120.0,0.94404245]
[1754184193772,0.2184136,113130.0,113120.0,0.94404245]
[1754184194575,0.1788236,113130.0,113120.0,0.94404245]
[1754184194772,0.2017936,113130.0,113120.0,0.94404245]
[1754184195371,0.02497,113130.0,113120.0,0.94404245]
[1754184195872,0.2017935,113130.0,113120.0,0.94404245]
[1754184196176,0.02497,113130.0,113120.0,0.94404245]
[1754184198172,0.02497,113130.0,113120.0,0.68566634]
[1754184198370,0.02497,113130.0,113120.0,0.94404245]
[1754184200974,0.002,113130.0,113120.0,0.94404245]
[1754184202486,0.2683637,113150.0,113120.0,0.94404245]
[1754184202487,0.02297,113150.0,113140.0,0.255408]
[1754184202778,0.02297,113150.0,113140.0,1.23538411]
[1754184204070,0.02697,113150.0,113140.0,1.23538411]
[1754184204270,0.02997,113150.0,113140.0,1.24423479]
[1754184205178,0.007,113150.0,113140.0,1.24423479]
[1754184205378,0.02997,113150.0,113140.0,1.24423479]
[1754184208386,0.2067626,113150.0,113140.0,1.50793479]
[1754184208886,0.3033426,113150.0,113140.0,1.24955868]
[1754184210989,0.2892926,113150.0,113140.0,1.24955868]
[1754184211287,0.1125,113150.0,113140.0,1.24955868]
[1754184211685,0.2892923,113150.0,113140.0,1.50793479]
[1754184212492,0.1125,113150.0,113140.0,1.50793479]
[1754184212693,0.2892923,113150.0,113140.0,1.50793479]
[1754184213086,0.1125,113150.0,113140.0,1.50793479]
[1754184213391,0.02997,113150.0,113140.0,1.50793479]
[1754184214292,0.02997,113150.0,113140.0,1.24423479]
[1754184214493,0.007,113150.0,113140.0,1.24423479]
[1754184214695,0.03019,113150.0,113140.0,1.24423479]
[1754184214895,0.007,113150.0,113140.0,1.24423479]
[1754184215687,0.03019,113150.0,113140.0,1.24423479]
[1754184216594,0.007,113150.0,113140.0,1.24423479]
[1754184216788,0.007,113150.0,113140.0,1.50793479]
[1754184216994,0.007,113150.0,113140.0,1.68470278]
[1754184217193,0.02319,113170.0,113160.0,0.2565869]
[1754184217392,0.02319,113170.0,113160.0,1.23656301]
[1754184218194,0.216196,113180.0,113170.0,0.2565713]
[1754184218400,0.282666,113180.0,113170.0,0.87574741]
[1754184218701,0.296716,113180.0,113170.0,0.87574741]
[1754184219088,0.296716,113180.0,113170.0,0.6173713]
[1754184219389,0.296716,113180.0,113170.0,0.87574741]
[1754184219791,0.300716,113180.0,113170.0,0.87574741]
[1754184219996,0.302716,113180.0,113170.0,0.6173713]
[1754184224698,0.56109211,113180.0,113170.0,0.5375617]
[1754184225001,0.56109211,113180.0,113170.0,0.3608]
[1754184225390,0.2967317,113170.0,113160.0,0.6615734]
[1754184226601,0.2997317,113170.0,113160.0,0.6615734]
[1754184226895,0.3017317,113170.0,113160.0,0.6615734]
[1754184227698,0.3017317,113170.0,113160.0,0.6130234]
[1754184227899,0.3017317,113170.0,113160.0,0.6615734]
[1754184229100,0.2997317,113170.0,113160.0,0.6615734]
[1754184229304,0.2977317,113170.0,113160.0,0.6615734]
[1754184229502,0.2987317,113170.0,113160.0,0.6615734]
[1754184232002,0.55710781,113170.0,113160.0,0.5472574]
[1754184232196,0.38034611,113170.0,113160.0,0.6173874]
[1754184232499,0.002,113170.0,113160.0,0.87576351]
[1754184232706,0.002,113170.0,113160.0,1.13413962]
[1754184232999,0.002,113170.0,113160.0,0.87576351]
[1754184233199,0.002,113170.0,113160.0,0.93808838]
[1754184234003,0.002,113170.0,113160.0,1.39783962]
[1754184234602,0.002,113170.0,113160.0,1.46041851]
[1754184235409,0.001,113170.0,113160.0,1.46041851]
[1754184236317,0.02319,113180.0,113170.0,0.2565717]
[1754184236509,0.02319,113180.0,113170.0,0.87574781]
[1754184236815,0.07434,113180.0,113170.0,0.87574781]
[1754184237016,0.2967162,113180.0,113170.0,0.87574781]
[1754184237216,0.2967162,113180.0,113170.0,0.44061]
[1754184237415,0.2977162,113180.0,113170.0,0.6173718]
[1754184237609,0.2977162,113180.0,113170.0,0.44061]
[1754184238116,0.2987162,113180.0,113170.0,0.44061]
[1754184238309,0.55709231,113180.0,113170.0,0.39206]
[1754184238514,0.55709231,113180.0,113170.0,0.3608]
[1754184238712,0.2954918,113170.0,113160.0,0.37064]
[1754184238911,0.55386791,113170.0,113160.0,0.41598]
[1754184239103,0.55386791,113170.0,113160.0,0.07804]
[1754184239911,0.55386791,113170.0,113160.0,0.43884]
[1754184240117,0.2954918,113170.0,113160.0,0.43984]
[1754184240416,0.55386791,113170.0,113160.0,0.3618]
[1754184240916,0.55386791,113170.0,113160.0,0.001]
[1754184241112,0.2231372,113160.0,113150.0,0.93092809]
[1754184241323,0.2945072,113160.0,113150.0,0.94076809]
[1754184241724,0.2945072,113160.0,113150.0,0.98610809]
[1754184242115,0.2945072,113160.0,113150.0,1.2444842]
[1754184242511,0.2945072,113160.0,113150.0,1.2454842]
[1754184242822,0.2945072,113160.0,113150.0,1.2464842]
[1754184243123,0.2945072,113160.0,113150.0,0.9255292]
[1754184243425,0.55288331,113160.0,113150.0,0.3628]
[1754184244411,0.2945072,113160.0,113150.0,0.3628]
[1754184244617,0.55288331,113160.0,113150.0,0.5395928]
[1754184244821,0.2945072,113160.0,113150.0,0.5810628]
[1754184245124,0.55288331,113160.0,113150.0,0.6176328]
[1754184245324,0.2945072,113160.0,113150.0,0.6176328]
[1754184246515,0.2945072,113160.0,113150.0,0.6166328]
[1754184246720,0.2945072,113160.0,113150.0,0.6176328]
[1754184247225,0.2945072,113160.0,113150.0,0.6166328]
[1754184247620,0.2945072,113160.0,113150.0,0.6156328]
[1754184249628,0.2945072,113160.0,113150.0,0.6166328]
[1754184249830,0.2945072,113160.0,113150.0,0.6176328]
[1754184252126,0.55288331,113160.0,113150.0,0.6176328]
[1754184252521,0.2945072,113160.0,113150.0,0.6176328]
[1754184253330,0.55288331,113160.0,113150.0,0.6176328]
[1754184254033,0.2945072,113160.0,113150.0,0.6176328]
[1754184256728,0.2945072,113160.0,113150.0,0.6166328]
[1754184256925,0.2164572,113160.0,113150.0,0.87600891]
[1754184257228,0.02482,113160.0,113150.0,0.87600891]
[1754184257839,0.2015969,113160.0,113150.0,0.87600891]
[1754184258633,0.2015969,113160.0,113150.0,0.6166328]
[1754184258830,0.2015969,113160.0,113150.0,0.87600891]
[1754184259531,0.02482,113160.0,113150.0,0.87600891]
[1754184259840,0.2457861,113170.0,113160.0,0.2548169]
[1754184260134,0.2457861,113170.0,113160.0,0.87399301]
[1754184260334,0.2015934,113170.0,113160.0,0.87399301]
[1754184260731,0.3455034,113180.0,113170.0,0.2548015]
[1754184260930,0.2368039,113180.0,113170.0,0.87397761]
[1754184261337,0.2616239,113180.0,113170.0,0.87397761]
[1754184262037,0.2626239,113180.0,113170.0,0.87397761]
[1754184262735,0.2966339,113180.0,113170.0,0.6156015]
[1754184263135,0.3178039,113180.0,113170.0,0.6156015]
[1754184263435,0.3271339,113180.0,113170.0,0.6156015]
[1754184263637,0.3261339,113180.0,113170.0,0.6156015]
[1754184264235,0.3261339,113180.0,113170.0,0.6166015]
[1754184264935,0.3396739,113180.0,113170.0,0.6176015]
[1754184265135,0.3396739,113180.0,113170.0,0.62634464]
[1754184270845,0.3396739,113180.0,113170.0,0.68892353]
[1754184275350,0.3396739,113180.0,113170.0,0.62634464]
[1754184278459,0.3396739,113180.0,113170.0,0.68892353]
[1754184279963,0.3396739,113180.0,113170.0,0.50341889]
[1754184280551,0.3396739,113180.0,113170.0,0.68018049]
[1754184280853,0.3396739,113180.0,113170.0,0.50341889]
[1754184281158,0.59805001,113180.0,113170.0,0.3628]
[1754184281958,0.59805001,113180.0,113170.0,0.3618]
[1754184282262,0.95885001,113180.0,113170.0,0.002]
[1754184283553,0.95885001,113180.0,113170.0,0.001]
[1754184283854,0.95885001,113180.0,113170.0,0.002]
[1754184284865,0.2256418,113170.0,113160.0,0.72479989]
[1754184285068,0.55670791,113170.0,113160.0,0.72479989]
[1754184285954,0.55670791,113170.0,113160.0,0.68060569]
[1754184286359,0.55670791,113170.0,113160.0,0.6180268]
[1754184289067,0.55670791,113170.0,113160.0,0.3608]
[1754184290467,0.298347,113160.0,113150.0,0.41942]
[1754184290675,0.55672311,113160.0,113150.0,0.41942]
[1754184290875,0.55672311,113160.0,113150.0,0.05862]
[1754184291169,0.55672311,113160.0,113150.0,0.41942]
[1754184291675,0.55672311,113160.0,113150.0,0.44125]
[1754184291973,0.55672311,113160.0,113150.0,0.50382889]
[1754184292871,0.55672311,113160.0,113150.0,0.6190428]
[1754184293376,0.298347,113160.0,113150.0,0.6200428]
[1754184296373,0.55672311,113160.0,113150.0,0.44325]
[1754184296572,0.55672311,113160.0,113150.0,0.6200426]
[1754184297071,0.55672311,113160.0,113150.0,0.3628]
[1754184297666,0.55672311,113160.0,113150.0,0.5395925]
[1754184297872,0.55672311,113160.0,113150.0,0.6200425]
[1754184298061,0.298347,113160.0,113150.0,0.6200425]
[1754184299869,0.298347,113160.0,113150.0,0.44325]
[1754184300375,0.55672311,113160.0,113150.0,0.44325]
[1754184300675,0.55672311,113160.0,113150.0,0.6200426]
[1754184300981,0.298347,113160.0,113150.0,0.44325]
[1754184301166,0.55672311,113160.0,113150.0,0.6200423]
[1754184301365,0.55672311,113160.0,113150.0,0.44325]
[1754184301774,0.55672311,113160.0,113150.0,0.6200423]
[1754184302379,0.55578311,113160.0,113150.0,0.6200423]
[1754184302566,0.249847,113160.0,113150.0,0.87841841]
[1754184303273,0.281857,113160.0,113150.0,0.87841841]
[1754184303471,0.281857,113160.0,113150.0,0.6200423]
[1754184303666,0.249847,113160.0,113150.0,0.6200423]
[1754184303866,0.217147,113160.0,113150.0,0.6200423]
[1754184304367,0.281347,113160.0,113150.0,0.6200423]
[1754184304567,0.294907,113160.0,113150.0,0.6200423]
[1754184305869,0.176777,113160.0,113150.0,0.87841841]
[1754184306079,0.2895891,113170.0,113160.0,0.2560067]
[1754184306275,0.3048791,113170.0,113160.0,0.87518281]
[1754184306472,0.2895891,113170.0,113160.0,0.87518281]
[1754184306976,0.2453956,113170.0,113160.0,0.87518281]
[1754184312082,0.2453956,113170.0,113160.0,0.87618281]
[1754184312783,0.2606856,113170.0,113160.0,0.87618281]
[1754184312983,0.2832556,113170.0,113160.0,0.87618281]
[1754184313183,0.2928756,113170.0,113160.0,0.9387617]
[1754184313576,0.2832556,113170.0,113160.0,0.9387617]
[1754184313788,0.2011913,113170.0,113160.0,0.9387617]
[1754184314081,0.02443,113170.0,113160.0,0.9397617]
[1754184314880,0.2011911,113170.0,113160.0,0.9397617]
[1754184316287,0.2164811,113170.0,113160.0,0.9397617]
[1754184316586,0.2710611,113170.0,113160.0,0.9397617]
[1754184316784,0.2806811,113170.0,113160.0,0.9397617]
[1754184317983,0.02443,113180.0,113170.0,0.00971]
[1754184318192,0.03972,113180.0,113170.0,0.96354281]
[1754184318886,0.2806634,113190.0,113180.0,0.2559755]
[1754184319086,0.2942234,113190.0,113180.0,0.87515161]
[1754184319486,0.2942234,113190.0,113180.0,0.6167755]
[1754184321384,0.2942234,113190.0,113180.0,0.44003]
[1754184321793,0.55259951,113190.0,113180.0,0.44003]
[1754184322493,0.2942234,113190.0,113180.0,0.6167757]
[1754184324091,0.2942234,113190.0,113180.0,0.69447114]
[1754184324290,0.2942234,113190.0,113180.0,0.50904808]
[1754184324490,0.55259951,113190.0,113180.0,0.48667808]
[1754184324793,0.55259951,113190.0,113180.0,0.3608]
[1754184326684,0.55259951,113190.0,113180.0,0.3628]
[1754184327285,0.55259951,113190.0,113180.0,0.3618]
[1754184327286,0.55359951,113190.0,113180.0,0.3618]
[1754184327495,0.55359951,113190.0,113180.0,0.5375455]
[1754184327794,0.55459951,113190.0,113180.0,0.1864555]
[1754184328092,0.2962234,113190.0,113180.0,0.2336055]
[1754184328393,0.55459951,113190.0,113180.0,0.2336055]
[1754184328592,0.2962234,113190.0,113180.0,0.2336055]
[1754184328793,0.55459951,113190.0,113180.0,0.2336055]
[1754184329394,0.2962234,113190.0,113180.0,0.2336055]